bitfinex/quotes_ETHUSD_20250129
["timestamp","ask_amount","ask_price","bid_price","bid_amount"]
[1738189200241,3.18908,3135.7,3135.2,3.18958]
[1738189200442,0.0075,3135.8,3135.2,3.18958]
[1738189200818,3.19649,3135.8,3135.2,3.18958]
[1738189202234,3.18864,3136.2,3135.4,0.8096]
[1738189202427,3.18874,3136.1,3135.5,3.18922]
[1738189202631,0.0075,3136.4,3135.4,0.8096]
[1738189202798,6.60496667,3136.5,3135.4,0.8096]
[1738189202799,3.18893,3135.9,3135.4,0.8096]
[1738189203339,0.41666667,3136.5,3135.4,0.8096]
[1738189203541,3.18873,3136.1,3135.5,3.18926]
[1738189203745,3.18855,3136.3,3135.8,3.18897]
[1738189203947,3.18863,3136.2,3135.6,4.0118]
[1738189204302,3.18855,3136.3,3135.6,4.0118]
[1738189204541,3.18855,3136.3,3135.7,3.18906]
[1738189205323,3.18855,3136.3,3135.7,3.909154]
[1738189206741,3.18855,3136.3,3135.7,3.909094]
[1738189207482,3.1885,3136.3,3135.7,7.098094]
[1738189207688,3.1885,3136.3,3135.7,3.909094]
[1738189208401,0.41666667,3136.5,3136.1,0.8227]
[1738189209087,3.60494667,3136.5,3136.1,0.8227]
[1738189210208,3.18837,3136.4,3136.1,0.8227]
[1738189212746,3.18847,3136.3,3135.8,0.7574]
[1738189213093,3.18841,3136.4,3135.8,3.94634]
[1738189213291,3.60497667,3136.5,3135.9,3.6555134]
[1738189213491,6.79333667,3136.5,3135.9,3.6555134]
[1738189213883,3.60497667,3136.5,3135.9,3.6555134]
[1738189214270,6.79332667,3136.5,3135.9,3.6555134]
[1738189214471,3.60497667,3136.5,3135.9,3.6555134]
[1738189214672,3.60497667,3136.5,3136.0,0.44129134]
[1738189217013,0.41666667,3136.5,3136.1,3.99419]
[1738189218166,0.41666667,3136.5,3136.3,3.18845]
[1738189219266,0.41666667,3136.5,3136.3,6.37685]
[1738189219495,0.41666667,3136.5,3136.3,3.1884]
[1738189219695,0.41666667,3136.5,3136.4,0.31884]
[1738189220063,0.41666667,3136.5,3136.4,3.5072]
[1738189221145,0.41666667,3136.5,3136.4,0.31884]
[1738189221303,0.41666667,3136.5,3136.1,0.8056]
[1738189222351,0.41666667,3136.5,3136.1,3.99425]
[1738189223707,0.41666667,3136.5,3136.3,3.18846]
[1738189224111,0.41666667,3136.5,3136.4,3.99536]
[1738189226559,0.41666667,3136.5,3136.4,4.64400587]
[1738189226763,0.41666667,3136.5,3136.4,5.42725246]
[1738189230592,0.41666667,3136.9,3136.8,7.02106]
[1738189231265,0.41666667,3136.9,3136.8,10.66789218]
[1738189231656,0.0107,3138.3,3137.7,3.187]
[1738189231995,0.0107,3138.3,3137.8,0.8331]
[1738189232209,0.005,3138.4,3138.0,3.18667]
[1738189232355,0.06585079,3138.2,3137.8,0.8331]
[1738189232689,0.06585079,3138.2,3138.1,3.18662]
[1738189232897,0.06629804,3138.2,3138.1,3.18662]
[1738189233051,0.005,3138.4,3138.1,3.18662]
[1738189233453,0.06636289,3138.3,3138.1,3.18662]
[1738189234408,0.06636289,3138.3,3138.2,3.18654]
[1738189235252,0.06636289,3138.3,3138.2,3.823856]
[1738189235453,0.005,3138.4,3138.3,3.18643]
[1738189235682,0.0718175,3138.4,3138.3,3.18643]
[1738189235886,0.005,3138.4,3138.3,3.18643]
[1738189237726,0.005,3138.4,3138.3,3.83676495]
[1738189238035,0.005,3138.4,3138.3,4.68613705]
[1738189239606,0.005,3138.4,3138.3,5.51923705]
[1738189244525,0.06972572,3138.4,3138.3,5.51923705]
[1738189244719,0.005,3138.4,3138.3,5.51923705]
[1738189244955,0.06972572,3138.4,3138.3,5.51923705]
[1738189245161,0.005,3138.4,3138.3,5.51923705]
[1738189245369,0.06972572,3138.4,3138.3,5.51923705]
[1738189245530,0.005,3138.4,3138.3,5.51923705]
[1738189245747,0.06972572,3138.4,3138.3,5.51923705]
[1738189245953,0.005,3138.4,3138.3,5.51923705]
[1738189246279,0.06972572,3138.4,3138.3,1.6824721]
[1738189246433,0.005,3138.4,3138.3,0.8331]
[1738189246630,0.06968646,3138.4,3137.9,0.7582]
[1738189246830,0.06968646,3138.4,3137.6,3.0]
[1738189246831,0.4272,3138.2,3137.6,0.7582]
[1738189247027,0.4272,3138.2,3137.7,3.18702]
[1738189247231,0.06251658,3138.1,3137.7,3.18702]
[1738189247776,3.24916658,3138.1,3137.8,0.64225915]
[1738189247973,0.06251658,3138.1,3137.5,3.18723]
[1738189248158,3.18677,3138.0,3137.5,3.900515]
[1738189248677,0.06236929,3137.9,3137.5,3.900515]
[1738189249532,0.06236929,3137.9,3137.7,0.63180243]
[1738189249932,3.18667,3138.1,3137.7,0.63180243]
[1738189250482,3.61383,3138.2,3137.7,0.63180243]
[1738189250632,0.06243416,3138.0,3137.7,0.63180243]
[1738189250879,3.18721,3137.6,3136.8,0.8095]
[1738189251197,3.18746,3137.3,3136.7,3.81160733]
[1738189251521,0.48893831,3137.2,3136.4,0.78324659]
[1738189251693,3.18793,3136.9,3136.3,3.18843]
[1738189251891,3.24943867,3136.8,3136.3,3.18843]
[1738189252093,3.24943867,3136.8,3136.2,0.8095]
[1738189252483,3.24943867,3136.8,3136.4,0.62663784]
[1738189252684,3.18806,3136.7,3136.3,0.399809]
[1738189252899,0.06114987,3136.6,3136.3,0.399809]
[1738189253107,0.48834987,3136.6,3136.3,0.399809]
[1738189254007,3.18834,3136.5,3136.0,0.44129134]
[1738189254410,0.06042005,3136.4,3136.0,0.44129134]
[1738189255588,3.24883005,3136.4,3136.0,0.44129134]
[1738189256330,0.06042005,3136.4,3136.3,3.18847]
[1738189256483,0.06042005,3136.4,3136.3,3.99797]
[1738189256685,0.4272,3137.0,3136.3,4.716614]
[1738189256988,0.06052526,3136.9,3136.5,3.18823]
[1738189257188,0.06052526,3136.9,3136.3,1.528144]
[1738189257584,3.61424,3137.7,3136.3,3.8095]
[1738189257899,3.18723,3137.6,3137.0,3.18774]
[1738189258926,0.4272,3137.7,3137.1,3.18759]
[1738189259302,0.4272,3137.7,3137.2,3.18754]
[1738189261107,3.18675,3138.0,3137.3,3.18736]
[1738189261427,3.18675,3138.0,3137.4,0.63749]
[1738189262040,3.18675,3138.0,3137.4,3.82481]
[1738189262231,0.4272,3138.1,3137.4,3.82481]
[1738189262399,0.4272,3138.1,3137.7,3.18703]
[1738189262708,3.61857,3138.4,3137.8,3.18692]
[1738189264042,3.18644,3138.3,3137.7,3.18703]
[1738189264353,3.18644,3138.3,3137.8,3.18693]
[1738189265210,0.4322,3138.4,3137.8,3.18687]
[1738189265529,0.0616203,3138.3,3137.9,0.318687]
[1738189267291,0.0616203,3138.3,3138.2,3.18654]
[1738189267452,0.0616203,3138.3,3138.1,3.18656]
[1738189268694,0.0616203,3138.3,3138.2,3.18654]
[1738189269245,0.0616203,3138.3,3138.2,3.99914]
[1738189269445,0.0616203,3138.3,3138.2,5.1013047]
[1738189269651,0.005,3138.4,3138.3,3.18643]
[1738189269968,0.06309391,3138.4,3138.3,3.18643]
[1738189270170,0.005,3138.4,3138.3,3.18643]
[1738189271756,0.06326219,3138.4,3138.3,3.18643]
[1738189271956,0.005,3138.4,3138.3,4.01520347]
[1738189272195,0.063272,3138.4,3138.3,4.01520347]
[1738189272355,0.005,3138.4,3138.3,4.01520347]
[1738189272695,0.063272,3138.4,3138.3,4.01520347]
[1738189272857,0.005,3138.4,3138.3,4.01520347]
[1738189273466,0.063272,3138.4,3138.3,4.01520347]
[1738189273679,0.005,3138.4,3138.3,4.01520347]
[1738189275497,0.063272,3138.4,3138.3,4.01520347]
[1738189275696,0.005,3138.4,3138.3,4.01520347]
[1738189276271,0.06328467,3138.4,3138.3,4.01520347]
[1738189276474,0.005,3138.4,3138.3,4.01520347]
[1738189276653,0.06328467,3138.4,3138.3,4.01520347]
[1738189276859,0.005,3138.4,3138.3,4.01520347]
[1738189277602,0.06342381,3138.4,3138.3,4.01520347]
[1738189277898,0.06343964,3138.4,3138.3,4.01520347]
[1738189278067,0.005,3138.4,3138.3,4.01520347]
[1738189278809,0.005,3138.4,3138.3,10.92463565]
[1738189279119,1e-05,3138.4,3138.3,11.47463565]
[1738189279403,0.1622983,3138.7,3138.6,4.54873]
[1738189279404,0.1614983,3138.7,3138.6,4.54873]
[1738189279599,0.1614983,3138.7,3138.6,8.77555918]
[1738189279804,8.3e-06,3138.7,3138.6,8.77555918]
[1738189282299,3.61175,3140.2,3139.4,0.8275]
[1738189282510,3.61175,3140.2,3139.4,4.01281]
[1738189282511,3.18477,3140.0,3139.4,4.01281]
[1738189282659,0.05783698,3140.1,3139.5,3.904967]
[1738189282854,0.05755053,3139.9,3139.5,3.904967]
[1738189283070,3.2425022,3140.0,3139.5,0.719817]
[1738189283270,0.0577312,3139.8,3139.5,0.719817]
[1738189283470,3.18473,3140.0,3139.5,0.719817]
[1738189283471,0.05779599,3139.9,3139.5,0.719817]
[1738189283712,3.0,3140.5,3139.1,3.18561]
[1738189283713,0.4272,3139.6,3139.1,3.18561]
[1738189284001,0.05753682,3139.5,3139.1,3.18561]
[1738189284810,0.05753682,3139.5,3139.2,3.18551]
[1738189284967,3.18509,3139.7,3139.2,3.18551]
[1738189285305,3.18483,3139.9,3139.3,3.822462]
[1738189285306,0.05747202,3139.4,3139.3,3.822462]
[1738189285523,0.4272,3140.0,3139.3,3.822522]
[1738189285666,0.4272,3140.0,3139.0,0.62412956]
[1738189285667,0.05747202,3139.4,3139.1,3.18556]
[1738189285867,3.18502,3139.7,3139.1,3.18556]
[1738189286199,0.05760162,3139.6,3139.1,3.18556]
[1738189286508,0.05760162,3139.6,3139.2,3.1855]
[1738189288612,0.05760162,3139.6,3139.0,0.62412956]
[1738189288786,0.4272,3139.4,3139.0,0.62412956]
[1738189289295,0.05789804,3139.3,3139.0,0.62412956]
[1738189290371,0.05789804,3139.3,3139.0,3.80984956]
[1738189291997,0.05789804,3139.3,3139.0,0.62412956]
[1738189292515,0.05789804,3139.3,3139.0,3.80982956]
[1738189292690,0.05789804,3139.3,3138.8,6.37174]
[1738189292894,0.05789804,3139.3,3138.9,3.18573]
[1738189293319,0.05789804,3139.3,3139.0,3.18564]
[1738189293636,3.18549,3139.3,3138.6,1.129997]
[1738189293933,3.18563,3139.1,3138.5,3.18614]
[1738189294138,0.05702229,3139.0,3138.5,3.18614]
[1738189294325,0.05702229,3139.0,3138.5,4.18758133]
[1738189294636,3.18613,3138.6,3137.9,7.16648]
[1738189294940,0.05617484,3138.5,3137.9,3.18676]
[1738189295105,3.24240484,3138.5,3137.9,3.88852092]
[1738189295304,3.24240484,3138.5,3137.9,0.70176092]
[1738189295643,3.24240484,3138.5,3137.3,3.18743]
[1738189295644,3.18662,3138.2,3137.3,3.18743]
[1738189295983,0.05576923,3138.1,3137.5,3.18722]
[1738189296282,3.24240923,3138.1,3137.5,3.18722]
[1738189296493,3.18674,3138.0,3137.4,3.18728]
[1738189296644,3.18674,3138.0,3137.4,3.96393151]
[1738189296997,0.05534687,3137.9,3137.4,3.96393151]
[1738189297485,3.24218687,3137.9,3137.4,0.77665151]
[1738189297691,0.05534687,3137.9,3137.4,0.77665151]
[1738189298663,3.24219687,3137.9,3137.4,0.77665151]
[1738189298893,0.05534687,3137.9,3137.4,0.77665151]
[1738189301193,0.05534687,3137.9,3137.5,3.18719]
[1738189301401,0.05534687,3137.9,3137.6,0.39638415]
[1738189301547,3.18665,3138.1,3137.6,0.39638415]
[1738189301749,0.05356877,3138.0,3137.5,3.18719]
[1738189303815,0.05356877,3138.0,3137.6,3.18712]
[1738189304431,3.18654,3138.2,3137.6,3.18712]
[1738189305226,0.05093641,3138.1,3137.6,3.18712]
[1738189305582,3.23761641,3138.1,3137.5,3.18721]
[1738189306228,3.23761641,3138.1,3137.4,3.18734]
[1738189306387,3.23761641,3138.1,3137.6,3.18713]
[1738189307537,3.18676,3138.0,3137.4,3.64679564]
[1738189308045,0.05042541,3137.9,3137.5,3.18719]
[1738189308341,3.18665,3138.1,3137.5,3.18724]
[1738189308537,0.05038157,3138.0,3137.5,3.18724]
[1738189309049,3.23714157,3138.0,3137.5,3.18724]
[1738189309204,0.05038157,3138.0,3137.5,3.18724]
[1738189309407,0.4272,3137.9,3137.5,3.18724]
[1738189309630,0.4272,3137.9,3137.4,0.45945564]
[1738189309829,0.4272,3137.9,3137.4,3.64678564]
[1738189309830,0.05027225,3137.8,3137.4,3.64678564]
[1738189311149,0.05027225,3137.8,3137.4,0.45945564]
[1738189311305,0.05027225,3137.8,3137.5,3.18722]
[1738189312104,0.05027225,3137.8,3137.5,6.3744]
[1738189313245,0.05027225,3137.8,3137.5,3.18718]
[1738189315368,0.05027225,3137.8,3137.7,3.18704]
[1738189315544,0.4272,3139.2,3137.7,7.52714]
[1738189315858,0.33196099,3139.9,3139.5,3.18515]
[1738189316016,0.4272,3139.9,3139.7,3.18493]
[1738189316215,0.65305471,3140.9,3139.7,3.18493]
[1738189316216,0.4272,3140.6,3139.7,0.637003]
[1738189316458,0.4272,3140.6,3140.2,3.18444]
[1738189316658,0.4272,3140.6,3140.3,3.1844]
[1738189316953,0.4272,3140.6,3140.2,3.18444]
[1738189317316,0.4272,3140.6,3140.3,3.18437]
[1738189318523,0.4272,3140.6,3140.2,3.18444]
[1738189323161,0.04066155,3140.5,3140.2,3.18444]
[1738189323482,0.04066155,3140.5,3140.3,3.18437]
[1738189323685,0.04066155,3140.5,3140.2,3.821354]
[1738189324771,0.04066155,3140.5,3140.3,3.18439]
[1738189326598,0.4272,3140.9,3140.4,3.1843]
[1738189326945,3.0,3140.8,3140.2,3.821344]
[1738189327153,3.0,3140.8,3140.2,0.636914]
[1738189327385,3.0,3140.8,3140.3,3.18439]
[1738189328277,3.61103,3140.9,3140.3,3.8849774]
[1738189330014,0.4272,3140.9,3140.4,3.18429]
[1738189330212,0.4272,3141.2,3140.6,3.18402]
[1738189331012,3.18352,3141.2,3140.7,3.94468]
[1738189331197,3.3452583,3141.8,3140.8,0.71287]
[1738189331507,0.1622983,3141.8,3141.3,3.18337]
[1738189331901,0.1622983,3141.8,3141.4,3.18329]
[1738189332204,0.1622983,3141.8,3141.3,3.18332]
[1738189332205,0.1622983,3141.8,3141.5,3.18312]
[1738189332563,0.1622983,3141.8,3141.7,3.18299]
[1738189332768,0.1622983,3141.8,3141.7,3.819601]
[1738189334823,0.1622983,3141.8,3141.7,7.580301]
[1738189335027,0.4272,3143.1,3142.6,3.18206]
[1738189335326,0.4272,3143.1,3142.7,3.18188]
[1738189335626,0.4272,3143.1,3142.6,3.18206]
[1738189335627,0.04145964,3143.0,3142.6,3.18206]
[1738189335921,0.04145964,3143.0,3142.6,3.18198]
[1738189336076,0.04145964,3143.0,3142.7,3.18195]
[1738189336514,0.04145964,3143.0,3142.4,3.18224]
[1738189336712,0.04145964,3143.0,3142.6,3.18206]
[1738189337836,0.4272,3141.6,3140.4,0.7607]
[1738189337980,3.18332,3141.4,3140.9,0.63204813]
[1738189338328,3.18369,3141.0,3140.9,0.63204813]
[1738189338627,3.184,3140.7,3139.7,0.7607]
[1738189338983,0.04120492,3140.6,3139.7,0.7607]
[1738189339182,3.18434,3140.4,3139.7,0.7607]
[1738189339441,0.04065007,3140.3,3139.7,0.7607]
[1738189339729,0.04065007,3140.3,3139.6,0.64026234]
[1738189340111,3.18431,3140.4,3139.6,0.64026234]
[1738189340309,0.04009179,3140.2,3139.6,0.64026234]
[1738189340509,0.03997932,3140.3,3139.6,0.64026234]
[1738189340716,3.18425,3140.5,3139.7,0.38254623]
[1738189341087,3.18451,3140.2,3139.7,0.38254623]
[1738189341239,3.18472,3140.0,3138.9,3.18582]
[1738189341448,3.18507,3139.7,3139.0,0.7983]
[1738189341743,3.18507,3139.7,3139.1,0.62848227]
[1738189341895,0.03812939,3139.6,3139.1,0.62848227]
[1738189342524,0.03812939,3139.6,3139.0,0.7983]
[1738189342841,3.18525,3139.5,3139.0,0.7983]
[1738189343042,3.18534,3139.4,3139.0,0.7983]
[1738189343349,3.22309391,3139.4,3138.5,1.3483]
[1738189343530,3.22309391,3139.4,3138.6,0.453462]
[1738189343703,3.22309391,3139.4,3139.0,0.63269071]
[1738189345047,0.03775391,3139.4,3139.0,0.63269071]
[1738189345261,0.4272,3140.1,3139.1,0.8082]
[1738189345401,0.4272,3140.6,3139.8,0.8082]
[1738189345770,0.4272,3141.3,3140.5,3.18419]
[1738189346063,3.18265,3142.1,3141.1,3.18354]
[1738189346203,0.4272,3142.3,3141.2,0.55]
[1738189346551,0.4272,3142.3,3140.6,0.015]
[1738189346552,3.84582714,3142.7,3141.3,0.8082]
[1738189346722,3.84582714,3142.7,3141.8,3.18287]
[1738189347043,3.84582714,3142.7,3141.9,0.318287]
[1738189347371,3.18208,3142.6,3141.9,0.318287]
[1738189350426,3.18178,3142.9,3142.1,3.18251]
[1738189350826,3.18178,3142.9,3141.9,0.318287]
[1738189351087,3.18199,3142.7,3141.9,0.318287]
[1738189351754,0.4272,3143.2,3142.0,1.16855599]
[1738189351942,0.4272,3143.2,3142.0,0.7546]
[1738189352139,3.18157,3143.1,3142.2,3.18247]
[1738189352354,3.1817,3143.0,3142.2,3.18247]
[1738189352955,3.18189,3142.8,3142.0,0.7546]
[1738189353531,3.18198,3142.7,3142.0,0.7546]
[1738189353777,3.18198,3142.7,3142.0,1.21217429]
[1738189354278,3.18189,3142.8,3142.0,0.45757429]
[1738189355078,3.18208,3142.6,3142.0,0.45757429]
[1738189356817,0.4272,3143.2,3142.0,0.45757429]
[1738189357115,0.005,3143.4,3143.1,3.18148]
[1738189357303,0.005,3143.4,3143.3,3.18136]
[1738189357912,0.005,3143.4,3143.1,4.56342233]
[1738189357913,0.005,3143.4,3143.1,3.93608]
[1738189358077,0.005,3143.4,3143.2,3.18145]
[1738189358277,0.005,3143.4,3143.3,0.393605]
[1738189358815,0.005,3143.4,3143.3,3.574965]
[1738189359113,0.005,3143.4,3143.3,3.18136]
[1738189360474,0.005,3143.4,3143.1,3.93612]
[1738189360674,0.005,3143.4,3143.1,3.18152]
[1738189360918,0.005,3143.4,3142.9,3.0]
[1738189361119,0.005,3143.4,3143.0,0.618187]
[1738189361315,0.005,3143.4,3142.7,3.7846]
[1738189361316,3.18628,3143.4,3142.7,3.96656]
[1738189362035,3.18628,3143.4,3143.0,0.64740251]
[1738189362036,3.61348,3143.4,3143.0,0.64740251]
[1738189363680,3.18146,3143.3,3143.0,0.64740251]
[1738189363878,3.18136,3143.3,3142.4,3.18226]
[1738189364126,3.18165,3143.1,3142.4,0.395986]
[1738189364325,3.18168,3143.0,3142.4,1.0300345]
[1738189364695,3.18158,3143.1,3142.4,4.2122645]
[1738189366026,0.005,3143.4,3143.3,3.93426]
[1738189366240,0.005,3143.4,3143.3,7.645841]
[1738189366441,3.17954,3145.1,3144.6,3.17997]
[1738189366442,0.4272,3145.1,3144.6,3.17997]
[1738189366603,0.33154971,3145.2,3144.6,3.17997]
[1738189366798,0.33154971,3145.2,3144.0,3.18064]
[1738189366799,0.33154971,3145.2,3144.3,0.7529]
[1738189367000,3.17836,3146.3,3144.8,7.48275]
[1738189367206,3.17864,3146.0,3145.1,3.17948]
[1738189367401,3.17915,3145.5,3144.8,1.81918]
[1738189367618,0.4272,3146.5,3144.4,1.37809895]
[1738189367818,3.60541,3146.5,3145.1,3.17953]
[1738189368151,3.60541,3146.5,3145.3,3.17927]
[1738189368152,0.4272,3146.5,3145.3,3.17927]
[1738189368301,3.17876,3145.9,3144.4,1.37809895]
[1738189368501,3.17865,3146.0,3145.3,3.17933]
[1738189368810,3.17834,3146.3,3145.4,3.17917]
[1738189369250,3.17834,3146.3,3145.6,3.17899]
[1738189370399,3.17834,3146.3,3145.6,3.17898]
[1738189370599,0.4272,3146.5,3145.3,0.7529]
[1738189370925,3.17845,3146.2,3145.5,3.17913]
[1738189371618,3.17857,3146.1,3145.5,3.17913]
[1738189371821,3.17857,3146.1,3145.3,3.93223]
[1738189372134,3.17868,3146.0,3145.3,3.93223]
[1738189372931,3.17868,3146.0,3145.4,3.17922]
[1738189373458,3.17858,3146.1,3145.4,3.17922]
[1738189374159,3.17865,3146.0,3145.4,3.17922]
[1738189374516,3.17865,3146.0,3145.2,3.17944]
[1738189374762,3.17884,3145.8,3145.2,3.17944]
[1738189375061,3.17884,3145.8,3144.7,3.0]
[1738189375356,3.17884,3145.8,3145.1,3.17953]
[1738189376665,3.17921,3145.5,3144.6,3.94947]
[1738189376849,3.17921,3145.5,3144.8,3.17981]
[1738189377053,0.4272,3145.7,3144.7,3.17987]
[1738189377223,3.17934,3145.3,3144.7,3.17987]
[1738189381211,3.17934,3145.3,3144.6,0.7695]
[1738189381370,3.17946,3145.2,3144.6,3.18003]
[1738189382778,3.17955,3145.1,3144.4,9.99333875]
[1738189382953,3.17955,3145.1,3144.4,3.81311875]
[1738189383155,3.17965,3145.0,3144.4,3.81311875]
[1738189383355,3.1797,3145.0,3144.4,3.18018]
[1738189383591,3.815625,3145.0,3144.4,3.18018]
[1738189383896,3.815625,3145.0,3144.2,3.97474]
[1738189384192,3.17986,3144.8,3144.2,3.18044]
[1738189384768,3.17986,3144.8,3144.3,0.0075]
[1738189387806,3.18007,3144.6,3144.0,3.18062]
[1738189388013,3.18007,3144.6,3143.8,0.8152]
[1738189388182,3.18026,3144.4,3143.8,3.99598]
[1738189388361,3.18026,3144.4,3143.8,4.713667]
[1738189389079,3.18026,3144.4,3143.9,0.0075]
[1738189389080,3.18047,3144.2,3143.9,0.0075]
[1738189389279,3.18047,3144.2,3143.5,6.18114]
[1738189389711,3.18047,3144.2,3143.6,0.0075]
[1738189390580,3.18065,3144.1,3143.6,0.0075]
[1738189392987,3.60767,3144.2,3143.5,0.0075]
[1738189392988,3.1807,3144.0,3143.5,0.0075]
[1738189394224,3.18077,3143.9,3143.5,0.0075]
[1738189395333,3.60775,3144.2,3143.5,0.0075]
[1738189395627,3.18061,3144.1,3143.5,0.0075]
[1738189395802,3.18061,3144.1,3143.5,3.18865]
[1738189396334,3.18061,3144.1,3143.6,3.18106]
[1738189396787,3.18061,3144.1,3143.5,0.0075]
[1738189396993,3.18061,3144.1,3143.5,3.18866]
[1738189398127,3.18011,3144.6,3143.9,0.0075]
[1738189398308,3.18011,3144.6,3143.9,0.7987]
[1738189398309,0.4272,3144.6,3143.9,0.7987]
[1738189398632,6.78682,3144.9,3144.3,0.0075]
[1738189399042,3.17991,3144.8,3144.3,0.0075]
[1738189399532,3.17996,3144.7,3144.1,3.19555]
[1738189400531,3.18015,3144.5,3144.1,0.015]
[1738189400717,3.18008,3144.6,3144.1,0.015]
[1738189405278,6.36022,3144.6,3144.1,0.015]
[1738189406467,3.18016,3144.5,3144.1,0.015]
[1738189406846,0.4272,3144.9,3143.6,0.8088]
[1738189406847,3.18048,3144.2,3143.6,0.8088]
[1738189407280,3.18067,3144.0,3143.6,1.2533786]
[1738189407672,3.18067,3144.0,3143.7,0.015]
[1738189408907,3.18089,3143.8,3143.4,0.64690009]
[1738189409260,3.18089,3143.8,3143.0,3.18166]
[1738189409661,3.18113,3143.6,3143.1,0.015]
[1738189409894,3.18136,3143.4,3143.1,0.015]
[1738189410376,3.18136,3143.4,3143.0,0.015]
[1738189411302,3.18157,3143.1,3143.0,0.015]
[1738189411596,3.18157,3143.1,3142.6,0.015]
[1738189411802,3.18181,3142.9,3142.6,0.015]
[1738189412807,6.36322,3143.1,3142.6,0.015]
[1738189412984,3.18191,3142.8,3142.6,0.0075]
[1738189413371,6.36388,3142.8,3142.6,0.0075]
[1738189413692,3.18191,3142.8,3142.3,0.0075]
[1738189413900,3.18204,3142.7,3142.3,0.0075]
[1738189414260,3.18209,3142.6,3142.3,0.015]
[1738189414465,3.18219,3142.5,3142.3,0.015]
[1738189415284,3.1821,3142.6,3142.3,0.015]
[1738189420171,3.18218,3142.5,3142.3,0.015]
[1738189420839,3.1821,3142.6,3142.3,0.015]
[1738189421012,3.18238,3142.3,3142.0,0.0075]
[1738189421655,3.18238,3142.3,3141.9,0.0075]
[1738189421656,3.18228,3142.4,3141.9,0.015]
[1738189421852,3.18251,3142.2,3141.9,0.015]
[1738189422772,0.31821,3142.6,3141.3,0.7892]
[1738189423076,3.18231,3142.4,3141.3,0.7892]
[1738189423262,3.18245,3142.3,3141.7,0.0075]
[1738189423458,3.18245,3142.3,3141.8,0.0075]
[1738189423632,3.18212,3142.6,3142.1,0.015]
[1738189424357,3.18221,3142.5,3142.1,0.0075]
[1738189424865,3.18221,3142.5,3142.0,0.0075]
[1738189427870,3.18229,3142.4,3142.0,0.0075]
[1738189432475,6.36465,3142.4,3142.0,0.0075]
[1738189433184,0.4272,3142.3,3141.4,0.8206]
[1738189433385,3.18285,3141.9,3141.4,0.8206]
[1738189434281,3.18309,3141.6,3141.5,0.0075]
[1738189434787,3.18309,3141.6,3141.1,0.8356]
[1738189435077,3.18309,3141.6,3141.1,1.237524]
[1738189435643,3.18309,3141.6,3141.1,4.421104]
[1738189435840,3.18248,3142.2,3141.8,0.015]
[1738189435841,3.18253,3142.2,3141.8,0.015]
[1738189436063,3.18272,3142.0,3141.8,0.015]
[1738189437086,3.60933,3142.6,3141.5,0.7964]
[1738189437087,3.1829,3141.8,3141.5,0.7964]
[1738189437386,3.183,3141.7,3141.2,0.8077]
[1738189437890,3.18309,3141.6,3141.3,0.015]
[1738189442370,3.60989,3142.0,3141.3,0.015]
[1738189442571,3.18269,3142.0,3141.5,0.015]
[1738189443590,3.18279,3141.9,3141.5,0.015]
[1738189444793,3.18248,3142.2,3141.2,0.8077]
[1738189444999,3.18314,3141.6,3141.2,0.8077]
[1738189445306,3.18314,3141.6,3141.3,0.015]
[1738189446063,3.18329,3141.4,3141.3,0.015]
[1738189446267,3.18329,3141.4,3140.9,0.8118]
[1738189446691,3.18329,3141.4,3141.0,0.015]
[1738189448675,3.18321,3141.5,3141.0,3.19868]
[1738189448870,3.18321,3141.5,3141.0,0.015]
[1738189449621,3.18331,3141.4,3141.0,0.015]
[1738189449819,3.18349,3141.2,3141.0,0.015]
[1738189450021,3.18349,3141.2,3141.0,0.0075]
[1738189450225,3.18367,3141.1,3140.6,0.7964]
[1738189450406,3.18367,3141.1,3140.6,3.9805]
[1738189451013,3.18332,3141.4,3140.7,3.1989]
[1738189451217,3.18332,3141.4,3140.9,0.015]
[1738189453229,0.4272,3141.6,3141.1,0.015]
[1738189453398,3.18271,3142.0,3141.3,0.8114]
[1738189453599,0.318271,3142.0,3141.7,0.0075]
[1738189453817,0.4272,3142.4,3141.7,0.0075]
[1738189453999,3.18258,3142.1,3141.7,0.0075]
[1738189454198,3.18258,3142.1,3141.6,0.0075]
[1738189455216,3.1827,3142.0,3141.5,0.015]
[1738189455409,3.18258,3142.1,3141.5,3.19818]
[1738189456803,3.1824,3142.3,3141.8,0.015]
[1738189458409,3.18263,3142.1,3141.8,0.0075]
[1738189458590,3.60924,3142.7,3141.8,0.0075]
[1738189458791,3.18232,3142.4,3141.7,0.0075]
[1738189458992,3.1825,3142.2,3141.9,0.015]
[1738189459707,3.1826,3142.1,3141.9,0.015]
[1738189460249,3.18268,3142.0,3141.6,0.0075]
[1738189460433,3.18299,3141.7,3141.6,0.0075]
[1738189460824,3.18299,3141.7,3141.1,0.7788]
[1738189461042,3.18312,3141.6,3141.1,0.7788]
[1738189461552,3.18334,3141.4,3141.1,0.7788]
[1738189462659,0.33197079,3143.4,3141.1,0.7788]
[1738189462861,0.33197079,3143.4,3142.0,0.015]
[1738189463150,0.33197079,3143.4,3142.6,3.18206]
[1738189463332,0.33197079,3143.4,3142.7,0.015]
[1738189464107,0.33197079,3143.4,3142.9,0.0075]
[1738189464951,3.18121,3143.5,3142.9,0.0075]
[1738189465663,3.18103,3143.7,3143.1,0.0075]
[1738189465819,0.318103,3143.6,3143.1,0.0075]
[1738189466225,0.318103,3143.6,3143.1,3.18898]
[1738189466522,0.318103,3143.6,3143.1,0.0075]
[1738189466748,0.318103,3143.6,3143.2,3.1814]
[1738189467410,0.318103,3143.6,3143.3,0.015]
[1738189467721,0.318103,3143.6,3143.3,3.19636]
[1738189469054,0.318103,3143.6,3143.0,3.99843]
[1738189469206,3.18123,3143.5,3142.8,3.18184]